Cogmind - Beta 12 @@@ ROGUE MODE // 2023.06.18 @ 23:35:41 Player: kicktown Result: Destroyed by Y-45 Defender with Beam Rifle Performance ------------- Evolutions (2) 1000 Regions Visited (4) 800 Robots Destroyed (24) 120 Value Destroyed (605) 605 Prototype IDs (1) 20 Alien Tech Used (0) 0 Bonus (200) 200 TOTAL SCORE: 2745 Bonus ------- Pacifist 200 Cogmind --------- Core Integrity 0/550 Matter 175/300 Energy 6/100 System Corruption 2% Temperature Cool (9) Movement Core (50) Location -8/Materials Parts ------- > --- POWER (1) -------- (None) > --- PROPULSION (4) --- (None) > --- UTILITY (4) ------ Advanced Targeting Computer Melee Analysis Suite > --- WEAPON (2) ------- Pulse Rifle > --- INVENTORY (5) ---- (None) Peak State ------------ > --- POWER ------------ (None) > --- PROPULSION ------- Airjet Airjet Airjet Airjet > --- UTILITY ---------- Advanced Targeting Computer Melee Analysis Suite Reaction Control System > --- WEAPON ----------- Pulse Rifle > --- INVENTORY -------- (None) [Rating: 24] Favorites ----------- Power Light Ion Engine Engine Light Ion Engine Propulsion Flight Unit Hover Unit Airjet Flight Unit Flight Unit Utility Targeting Computer Device Heat Sink Storage Small Storage Unit Processor Targeting Computer Weapon Advanced Beam Cannon Energy Gun Beam Rifle Energy Cannon Advanced Beam Cannon Ballistic Cannon Flak Cannon Impact Weapon Hammer Build | -11 -10 -9 -9 -8 ------- Run | Jun Mat Mat Sto Mat Slots Evolved 4 | . . 2 . 2 Power . | . . . . . Propulsion 2 | . . 1 . 1 Utility 2 | . . 1 . 1 Weapon . | . . . . . Parts Attached 49 | 3 1 . 23 22 Power 8 | 2 . . 3 3 Engine 8 | 2 . . 3 3 Core . | . . . . . Reactor . | . . . . . Propulsion 13 | . . . 5 8 Treads . | . . . . . Leg . | . . . . . Wheel . | . . . . . Hover 6 | . . . . 6 Flight 7 | . . . 5 2 Utility 12 | . 1 . 6 5 Device 5 | . . . 3 2 Storage 4 | . . . 3 1 Processor 3 | . 1 . . 2 Hackware . | . . . . . Protection . | . . . . . Artifact . | . . . . . Weapon 16 | 1 . . 9 6 Energy Gun 4 | 1 . . 1 2 Energy Cannon 8 | . . . 8 . Ballistic Gun . | . . . . . Ballistic Cannon 2 | . . . . 2 Launcher . | . . . . . Special Weapon . | . . . . . Impact Weapon 2 | . . . . 2 Slashing Weapon . | . . . . . Piercing Weapon . | . . . . . Special Melee Weapon . | . . . . . Unidentified Prototypes 1 | . . . 1 . Parts Lost 22 | . . . 1 21 Power 4 | . . . 1 3 Propulsion 10 | . . . . 10 Utility 6 | . . . . 6 Weapon 2 | . . . . 2 Highest Loss Streak 16 | . . . 1 16 To Critical Strikes . | . . . . . Average Slot Usage (%) 50 | . 16 22 47 61 Engine 5 | . . . 6 4 Hover 4 | . . . . 11 Flight 7 | . . . 8 8 Device 8 | . . . 6 13 Storage 3 | . . . 4 1 Processor 11 | . 2 11 11 13 Energy Gun 4 | . 14 11 3 3 Energy Cannon 3 | . . . 6 . Impact Weapon 1 | . . . . 3 Naked Turns . | . . . . . Heaviest Build 15 | 3 1 1 12 15 Greatest Support 24 | 3 3 3 12 24 Greatest Overweight (x) 4 | . . . 3 4 Average Overweight (x) . | . . . . . Largest Inventory Capacity 8 | 5 5 5 8 8 Average Capacity 5 | 5 5 5 6 5 Most Carried 8 | 2 2 2 8 5 Average Carried 2 | 1 2 2 3 2 Final Capacity 5 | 5 5 5 5 5 Final Carried 5 | 2 2 2 5 . Class Distribution -------------------- 67% | Mutant 32% | Scavenger-Mutant Dominant Class ---------------- Mutant | -10/Materials Mutant | -9/Materials Mutant | -9/Storage Mutant | -8/Materials Resources | -11 -10 -9 -9 -8 ----------- Run | Jun Mat Mat Sto Mat Matter Collected 474 | 200 . . 255 19 Remotely . | . . . . . Salvage Created 972 | . . . 823 149 Parts 52 | . . . 42 10 Haulers Intercepted . | . . . . . Recyclers Shooed 3 | . . . 3 . Parts Field Recycled . | . . . . . Retrieved Matter . | . . . . . Parts Self-Destructed . | . . . . . Prevented . | . . . . . Kills | -11 -10 -9 -9 -8 ------- Run | Jun Mat Mat Sto Mat Combat Hostiles Destroyed 18 | . . . 12 6 Guns 3 | . . . . 3 Cannons 12 | . . . 11 1 AOE 2 | . . . . 2 Classes Destroyed 6 | . . . 4 2 Recycler 5 | . . . 5 . Operator 1 | . . . . 1 Swarmer 6 | . . . 3 3 Grunt 6 | . . . 5 1 Duelist 1 | . . . . 1 Sentry 5 | . . . 4 1 Best Kill Streak 8 | . . . 8 3 Combat Bots Only 6 | . . . 6 3 Max Kills in Single Turn 2 | . . . 1 2 Gunslinging . | . . . . . Exploded 2 | . . . . 2 Melee . | . . . . . Uniques/NPCs Destroyed . | . . . . . Combat | -11 -10 -9 -9 -8 -------- Run | Jun Mat Mat Sto Mat Damage Taken 2327 | . 69 . 538 1720 Core 816 | . 57 . 207 552 Absorbed by Shields . | . . . . . Core Remaining (%) 75 | 100 77 . 48 . Volleys Fired 48 | . 1 . 24 23 Largest 2 | . 1 . 2 2 Hottest 136 | . 40 . 136 100 Shots Fired 70 | . 1 . 44 25 Gun 25 | . 1 . 4 20 Cannon 45 | . . . 40 5 Launcher . | . . . . . Special . | . . . . . Kinetic 5 | . . . . 5 Thermal 65 | . 1 . 44 20 Explosive . | . . . . . Electromagnetic . | . . . . . Robot Hit Streak 19 | . . . 9 19 Robot Miss Streak 3 | . . . 3 3 Penetration Max . | . . . . . Secondary Targets . | . . . . . Shots Hit Robots 50 | . . . 26 24 Core Hits 29 | . . . 15 14 Critical Kills 1 | . . . 1 . Critical Parts Destroyed 1 | . . . . 1 Critical Strikes 4 | . . . 1 3 Burn 2 | . . . . 2 Meltdown 1 | . . . 1 . Smash 1 | . . . . 1 Melee Attacks 2 | . . . . 2 Impact 2 | . . . . 2 Slashing . | . . . . . Piercing . | . . . . . Sneak Attacks . | . . . . . Combat Hostiles . | . . . . . Follow-up Attacks . | . . . . . Damage Inflicted 1288 | . . . 598 690 Guns 355 | . . . 44 311 Cannons 639 | . . . 554 85 Explosions 248 | . . . . 248 Melee 36 | . . . . 36 Ramming 10 | . . . . 10 Kinetic 85 | . . . . 85 Thermal 909 | . . . 598 311 Explosive 248 | . . . . 248 Electromagnetic . | . . . . . Impact 36 | . . . . 36 Slashing . | . . . . . Piercing . | . . . . . Highest Corruption 2 | . . . . 2 Average Corruption 2 | . . . . 2 Corruption Purged . | . . . . . Corruption Blocked . | . . . . . Overload Shots . | . . . . . Overflow Damage 52 | . . . 16 36 Projectiles 16 | . . . 16 . Explosions . | . . . . . Melee 36 | . . . . 36 Knockbacks 5 | . . . . 5 Impact . | . . . . . Kinetic 5 | . . . . 5 Secondary . | . . . . . Self-Inflicted Damage 4 | . . . . 4 Shots . | . . . . . Rammed 3 | . . . . 3 Targets Rammed 3 | . . . . 3 Kicked . | . . . . . Crushed . | . . . . . Highest Temperature 483 | . . . 483 26 Average Temperature 121 | . . . 153 8 Received Heat Transfer 993 | . 36 . 219 738 Siege Activations . | . . . . . Robots Corrupted . | . . . . . Combat Hostiles . | . . . . . Parts Fried 3 | . . . . 3 Impact Corruptions 1 | . . . . 1 Robots Melted 1 | . . . 1 . Combat Hostiles 1 | . . . 1 . Parts Melted 3 | . . . 2 1 Heat Transferred 1961 | . . . 1110 851 Parts Sabotaged . | . . . . . Parts Stolen . | . . . . . Parts Stripped . | . . . . . Power Chain Reactions . | . . . . . Missiles Intercepted . | . . . . . Alert | -11 -10 -9 -9 -8 ------- Run | Jun Mat Mat Sto Mat Peak Influence 422 | . 15 . 422 198 Initial 178 | . . . . 178 Average 163 | . 2 . 264 71 Maximum Alert Level 2 | . . . 2 . Low Security (%) 66 | 100 100 100 34 100 Level 1 21 | . . . 41 . Level 2 12 | . . . 23 . Level 3 . | . . . . . Level 4 . | . . . . . Level 5 . | . . . . . High Security . | . . . . . Max Security . | . . . . . Squads Dispatched 3 | . 1 . . 2 Investigation . | . . . . . Extermination . | . . . . . Reinforcement 3 | . 1 . . 2 Assault . | . . . . . Garrison . | . . . . . Intercept . | . . . . . Searches Triggered . | . . . . . Construction Impeded . | . . . . . Haulers Reinforced . | . . . . . Active Scanning Responses . | . . . . . Cargo Convoy Interrupts . | . . . . . Stealth | -11 -10 -9 -9 -8 --------- Run | Jun Mat Mat Sto Mat Distress Signals 2 | . 1 . . 1 Communications Jammed . | . . . . . Distress Signals . | . . . . . Times Spotted 37 | . 4 . 15 18 Peak Tracking Total 12 | . 3 . 5 12 Tactical Retreats 2 | . . . . 2 Traps | -11 -10 -9 -9 -8 ------- Run | Jun Mat Mat Sto Mat Traps Triggered 1 | . . . 1 . Indirectly . | . . . . . Trap Hack Attempts . | . . . . . Triggered . | . . . . . Disarmed . | . . . . . Reprogrammed . | . . . . . Reused . | . . . . . Traps Extracted . | . . . . . Installed . | . . . . . Triggered . | . . . . . Machines | -11 -10 -9 -9 -8 ---------- Run | Jun Mat Mat Sto Mat Machines Disabled 1 | . . . . 1 Max in Single Turn 1 | . . . . 1 Machines Repaired . | . . . . . Machines Sabotaged . | . . . . . Overloaded Fab Kills . | . . . . . Hacking | -11 -10 -9 -9 -8 --------- Run | Jun Mat Mat Sto Mat Machines Accessed 7 | . 1 . 3 3 Terminals 6 | . 1 . 2 3 Fabricators . | . . . . . Repair Stations . | . . . . . Recycling Units 1 | . . . 1 . Scanalyzers . | . . . . . Garrison Access . | . . . . . Total Hacks 11 | . 1 . 7 3 Successful 4 | . 1 . 1 2 Failed 7 | . . . 6 1 Catastrophic 2 | . . . 1 1 Database Lockouts . | . . . . . Manual 5 | . 1 . 1 3 Terminals 7 | . 1 . 3 3 Fabricators . | . . . . . Repair Stations . | . . . . . Recycling Units 4 | . . . 4 . Scanalyzers . | . . . . . Garrison Access . | . . . . . Terminal Hacks 4 | . 1 . 1 2 Open Door 1 | . . . 1 . Unreport Threat 3 | . 1 . . 2 Fabricator Hacks . | . . . . . Repair Station Hacks . | . . . . . Recycling Unit Hacks . | . . . . . Scanalyzer . | . . . . . Garrison Access Hacks . | . . . . . Unauthorized Hacks . | . . . . . Terminals . | . . . . . Fabricators . | . . . . . Repair Stations . | . . . . . Recycling Units . | . . . . . Scanalyzers . | . . . . . Garrison Access . | . . . . . Data Cores Recovered 1 | . . . . 1 Used 1 | . . . . 1 Hacking Detections 3 | . . . 1 2 Full Trace Events 1 | . . . 1 . Feedback Events . | . . . . . Feedback Blocked . | . . . . . Robot Schematics Acquired . | . . . . . Robots Built . | . . . . . Authchips . | . . . . . Time . | . . . . . Total Robot Build Rating . | . . . . . Part Schematics Acquired . | . . . . . Parts Built . | . . . . . Authchips . | . . . . . Time . | . . . . . Total Part Build Rating . | . . . . . Parts Repaired . | . . . . . Time . | . . . . . Parts Recycled . | . . . . . Recycled Matter . | . . . . . Retrieved Matter . | . . . . . Retrieved Components . | . . . . . Parts Scanalyzed . | . . . . . Part Schematics Acquired . | . . . . . Parts Damaged . | . . . . . Bothacking | -11 -10 -9 -9 -8 ------------ Run | Jun Mat Mat Sto Mat Used RIF Installer . | . . . . . Robots Hacked . | . . . . . Non-combat . | . . . . . Combat . | . . . . . Robot Hacks Applied . | . . . . . Relay Couplers Released . | . . . . . Fabnet Peak Effective % . | . . . . . Robots Rewired . | . . . . . Allies Hacked . | . . . . . Hacks Repelled . | . . . . . Allies | -11 -10 -9 -9 -8 -------- Run | Jun Mat Mat Sto Mat Total Allies . | . . . . . Largest Group . | . . . . . Highest-Rated Group . | . . . . . Highest-Rated Ally . | . . . . . Total Orders . | . . . . . Ally Attacks . | . . . . . Total Damage . | . . . . . Kills . | . . . . . Allies Corrupted . | . . . . . Allies Melted . | . . . . . Intel | -11 -10 -9 -9 -8 ------- Run | Jun Mat Mat Sto Mat Robot Analysis Total . | . . . . . Derelict Logs Recovered . | . . . . . Drone Launches . | . . . . . Drone Recoveries . | . . . . . Exploration | -11 -10 -9 -9 -8 ------------- Run | Jun Mat Mat Sto Mat Turns Passed 749 | 21 48 11 385 284 Spaces Moved 784 | 30 87 22 373 272 Core 356 | 30 87 22 171 46 Treads . | . . . . . Legs . | . . . . . Wheels . | . . . . . Hover 67 | . . . . 67 Flight 361 | . . . 202 159 Fastest Speed 34 | 50 50 50 34 37 Average Speed 54 | 50 50 50 54 57 Slowest Speed 250 | 50 50 50 200 250 Overloaded Moves . | . . . . . Propulsion Burnouts . | . . . . . Robots Hopped 1 | . . . 1 . Cave-ins Triggered . | . . . . . Exploration Rate (%) 24 | 3 22 4 55 36 Regions Visited 4 Branch Regions 1 Pre-discovered Areas . | . . . . . Known Exits Taken . | . . . . . Unknown Exits Taken 4 | 1 1 1 1 . Scrap Searched . | . . . . . Spaces Dug 1 | . . . . 1 Terrain Destroyed 10 | . . . . 10 Melee 1 | . . . . 1 Projectile . | . . . . . AOE 9 | . . . . 9 Terrain Rammed . | . . . . . Walls Destroyed . | . . . . . Machines Disabled . | . . . . . Actions | -11 -10 -9 -9 -8 --------- Run | Jun Mat Mat Sto Mat Total 1032 | 35 89 21 515 372 Wait 94 | . 1 . 55 38 Move 778 | 29 86 21 370 272 Hop 1 | . . . 1 . Pick Up 21 | 1 . . 15 5 Fast Attach 31 | 2 1 . 15 13 Attach 16 | 1 . . 7 8 Detach 10 | 2 . . 7 1 Swap 2 | . . . 1 1 Drop 26 | . . . 20 6 Fire 48 | . 1 . 24 23 Melee 2 | . . . . 2 Ram 3 | . . . . 3 Kick . | . . . . . Crush . | . . . . . Escape Stasis . | . . . . . Rewire . | . . . . . Trap . | . . . . . Miscellaneous . | . . . . . Route ------- -11/Junkyard -10/Materials -9/Materials -9/Storage -8/Materials History --------- Turn | Location | Event 13 | -11/Junkyard | Discovered new exit (range 14) 22 | -11/Junkyard | Entered Materials 50 | -10/Materials | Discovered new exit (range 16) 70 | -10/Materials | Entered another Materials area 70 | -9/Materials | Evolved 2 slots: Propulsion x1, Utility x1 70 | -9/Materials | Discovered new exit (range 14) 81 | -9/Materials | Entered Storage 287 | -9/Storage | Discovered new exit (range 16) 364 | -9/Storage | Core integrity fell below 50% 466 | -9/Storage | Entered Materials 466 | -8/Materials | Evolved 2 slots: Propulsion x1, Utility x1 641 | -8/Materials | Core integrity fell below 50% 681 | -8/Materials | Core integrity fell below 20% 684 | -8/Materials | Lost 16 parts (3p6n5u2w) 750 | -8/Materials | Destroyed by Y-45 Defender with Beam Rifle Last Messages --------------- M004. 00649_ Slammed into Y-45 Defender. 00649_ Destabilizing: System corrupted (+2). 00650_ Slammed into Y-45 Defender. 00653_ Sml. Storage Unit destroyed. 00660_ Acquired Airjet. 00672_ Acquired Pulse Rifle. 00676_ Acquired Reaction Control System. 00680_ Critical hit (Burn: +37). 00682_ Slammed into A-02 Transporter. 00706_ Airjet destroyed. 00710_ G-47 Trooper heat short circuits Lgt. Nuclear Core. 00710_ Airjet destroyed. 00713_ G-47 Trooper destroyed. 00714_ Reaction Control System destroyed. 00721_ G-47 Trooper suffers critical hit (Burn). 00726_ Airjet destroyed. 00742_ Heat Sink melted. 00742_ Y-45 Defender destroyed. 00744_ Airjet destroyed. Map ----- +----------------------------------------------------+ | # = /##################### #???????? | | =# *%[ %/ #??? ???? | | # ! ##################### #???????? | | + * "" #???????????#???????# #???????? | | # ** T" #???????????????????# #???????? | | # * * "" #???????#????#??????# #???????? | | # * #?###????????#?#????# #???????? | | # +####"##### ##???????????#??????# #???????? | | ]##???###???????????????#???# #???????? | | #??????????????????????????# #??#????? | | """ """ #??????????????????#??????## #???????? | | """ """ #?????????#???????????????## ##??????? | | """ """ #???????????????########### #??????? | | #?#?##??????????# #??????? | | #???????????????# ######### #??????? | | ##??????????????# #############??????? | | ##########?????#?????????# + #???????????? | | ?????????????????????????# # #???????????? | | ??????????????#??????????# / #???????????? | | ?????????????????????????# # #???????????? | | ?????????????????????????# #! ! #???????????? | | ?????????????????????????# # ! #???????????? | | ?????????????????????????# ########???????????? | | ?????????????????????????#Y#??????????????????? | | ???????????????????????###Y####???????????????? | | ???????????????????????# @%! #???????????????? | | ???????????????????????#"" #???????????????? | | ???????????????????????#"T #???????????????? | | ???????????????????????#"" #???????????????? | | ???????????????????????# #???????????????? | | ???????????????????????# ! #???????????????? | | ???????????????????????########???????????????? | | ??????????????????????????????????????????????? | | ??????????????????????????????????????????????? | | ??????????????????????????????????????????????? | | ??????????????????????????????????????????????? | | ??????????????????????????????????????????????? | | ??????????????????????????????????????????????? | | ??????????????????????????????????????????????? | | ??????????????????????????????????????????????? | | ??????????????????????????????????????????????? | | ??????????????????????????????????????????????? | | ??????????????????????????????????????????????? | | ??????????????????????????????????????????????? | | ??????????????????????????????????????????????? | | ??????????????????????????????????????????????? | | ??????????????????????????????????????????????? | | ??????????????????????????????????????????????? | | ??????????????????????????????????????????????? | | ??????????????????????????????????????????????? | +----------------------------------------------------+ Best States ------------- Heat Dissipation 41 Energy Generation 14 Energy Capacity 140 Matter Stores 300 Matter Capacity 300 Sight Range 16 Terrain Scan Range 16 Terrain Scan Density 10 Evasion (%) 63 Targeting Accuracy 8 Melee Accuracy 5 Item Schematics ----------------- None Robot Schematics ------------------ None Fabricated ------------ Nothing Alien Tech Used ----------------- None Achievements -------------- None Challenges ------------ None Game ------ Seed TrackerDecoyCleaver Manual? 0 Play Time 00:22:44 Cumulative 54.8 hours Start 2023.06.18 @ 23:14:27 End 2023.06.18 @ 23:35:41 Sessions 1 Manual Loads 0 Difficulty Rogue Special Mode None Game No. 44 Rogue 44 Adventurer 0 Explorer 0 Win Type - Total 0 Types 0/0/0/0/0/0/0/0/0 Lore% 26 Gallery% 45 Achievement% 32 Wizard Run 0 Options --------- ASCII 0 Keyboard 0 Movement Mouse Keybinds 0 Fullscreen 2 Font 18/TerminusBold Map View 76x50 Tactical HUD 1 Map Filters NONE Filters NONE Steam 1 RUN: a9862ddd-cc13-445c-b849-1bb602a285ce